bitfinex/quotes_ETHUSD_20220218
["timestamp","ask_amount","ask_price","bid_price","bid_amount"]
[1645194875587,4.0911,2869.4,2868.4,0.02205152]
[1645194875792,4.0911,2869.4,2868.0,0.12]
[1645194875793,6.5,2869.0,2868.0,0.01606816]
[1645194875991,1.05229766,2869.1,2866.2,1.22533365]
[1645194875992,6.5,2868.7,2866.2,1.22533365]
[1645194876198,0.87286,2867.9,2866.5,7.3]
[1645194876390,5.0,2868.3,2865.9,3.50410408]
[1645194876391,6.5,2867.7,2865.9,0.01387408]
[1645194876592,4.0913,2867.8,2865.9,0.01387408]
[1645194876593,5.215,2867.4,2865.9,0.03290867]
[1645194876792,1.17491184,2866.9,2865.9,8.42771424]
[1645194877041,0.417,2866.8,2865.9,1.09480557]
[1645194877244,0.367,2866.8,2865.2,4.71227418]
[1645194877646,0.367,2866.8,2865.2,5.58521418]
[1645194877840,0.367,2866.8,2865.5,1.74603]
[1645194877841,0.667,2866.8,2865.5,1.74603]
[1645194878044,0.667,2866.8,2866.7,0.00126684]
[1645194878240,0.95472582,2866.8,2866.7,6.684e-05]
[1645194878646,0.667,2866.8,2866.7,6.684e-05]
[1645194879042,0.367,2866.8,2866.7,6.684e-05]
[1645194879442,0.667,2866.8,2866.7,6.684e-05]
[1645194879645,0.367,2866.8,2866.7,6.684e-05]
[1645194880548,0.367,2866.8,2866.2,0.00506813]
[1645194880549,0.367,2866.8,2865.7,0.87295]
[1645194880775,0.13819997,2867.6,2865.7,0.87295]
[1645194880776,0.417,2867.4,2865.7,5.88522418]
[1645194881074,0.00151622,2866.9,2865.8,7.3]
[1645194881276,1.13655486,2866.8,2866.1,1.74524]
[1645194881476,1.13655486,2866.8,2865.8,8.20419731]
[1645194881477,1.13655486,2866.8,2865.8,7.3]
[1645194882077,1.13655486,2866.8,2865.8,7.30268404]
[1645194882078,1.13923796,2866.8,2865.8,7.30268404]
[1645194882276,1.13923796,2866.8,2866.0,1.7453]
[1645194882277,1.43923796,2866.8,2866.0,1.7453]
[1645194882483,0.0026831,2866.8,2866.0,1.7453]
[1645194882677,0.0026831,2866.8,2866.1,4.71227418]
[1645194882874,0.0026831,2866.8,2866.0,1.2453]
[1645194883076,0.00536607,2866.8,2866.0,1.2453]
[1645194883279,0.00536607,2866.8,2866.1,2.9177]
[1645194883481,0.90431872,2868.1,2867.1,0.87928268]
[1645194883677,0.417,2868.2,2867.1,0.87928268]
[1645194883879,0.417,2868.2,2867.0,7.3]
[1645194883880,0.28772582,2868.1,2867.0,7.3]
[1645194884078,0.28772582,2868.1,2866.8,1.75466611]
[1645194884079,3.78772582,2868.1,2866.8,1.75466611]
[1645194884278,0.5913,2868.2,2866.9,0.3]
[1645194884279,0.70472582,2868.2,2866.9,0.3]
[1645194884535,0.65472582,2868.2,2866.8,1.55466611]
[1645194884739,0.65472582,2868.2,2866.9,0.1743]
[1645194884941,0.65472582,2868.2,2867.4,0.95957665]
[1645194885144,0.367,2868.2,2867.4,1.83204665]
[1645194885742,0.5913,2868.9,2867.5,3.5]
[1645194886041,5.0,2870.5,2867.5,3.5]
[1645194886042,0.1743,2869.1,2867.6,7.3]
[1645194886242,0.01225414,2870.0,2867.9,7.32822418]
[1645194886243,0.417,2869.7,2867.9,7.32822418]
[1645194886445,0.28772582,2870.3,2868.2,4.71227418]
[1645194886644,1.08660041,2870.0,2869.0,1.07340666]
[1645194886842,1.08660041,2870.0,2869.1,0.30107114]
[1645194887240,1.08660041,2870.0,2869.2,0.30107114]
[1645194887445,1.08660041,2870.0,2868.2,0.87223]
[1645194887446,0.03010711,2869.1,2868.2,0.87223]
[1645194887943,1.0483625,2868.3,2868.2,0.87223]
[1645194888142,1.0483625,2868.3,2867.4,4.5944306]
[1645194888580,0.28772582,2868.9,2867.4,4.5944306]
[1645194888581,0.1743,2868.8,2867.6,0.87238]
[1645194888785,0.717,2868.9,2867.6,0.87238]
[1645194888979,0.417,2868.9,2867.7,3.50408181]
[1645194889179,0.00213049,2868.3,2867.9,1.74448]
[1645194889381,0.00213049,2868.3,2868.0,0.00408181]
[1645194889583,0.00213049,2868.3,2867.9,1.74448]
[1645194889788,0.00213049,2868.3,2867.6,0.00408181]
[1645194889789,0.28772582,2868.0,2867.6,0.00408181]
[1645194890105,1.59387476,2868.2,2866.3,0.0031675]
[1645194890106,0.417,2867.9,2866.3,0.0031675]
[1645194890286,0.417,2867.8,2866.3,0.00723003]
[1645194890884,0.417,2867.8,2867.1,0.87261]
[1645194891086,1.01205908,2867.7,2867.1,0.87667253]
[1645194891288,0.717,2867.7,2867.1,0.87667253]
[1645194892124,1.67706233,2867.7,2867.1,0.87667253]
[1645194892724,0.417,2867.7,2867.1,1.17667253]
[1645194892936,0.00150947,2868.0,2867.1,1.17667253]
[1645194893128,0.00150947,2868.0,2867.4,1.74479]
[1645194893326,0.00150947,2868.0,2867.4,1.74885253]
[1645194893525,0.00150947,2868.0,2867.4,2.04885253]
[1645194894528,0.00150947,2868.0,2867.5,0.87239]
[1645194895128,0.00150947,2868.0,2867.5,1.17239]
[1645194895330,0.03010711,2869.1,2868.3,1.03656634]
[1645194895534,0.03010711,2869.1,2868.3,0.87201]
[1645194895779,0.03010711,2869.1,2868.4,0.00406253]
[1645194895979,0.03010711,2869.1,2868.3,0.3]
[1645194896180,0.03010711,2869.1,2868.1,0.00406253]
[1645194896580,0.03010711,2869.1,2868.3,0.97083965]
[1645194896778,0.03010711,2869.1,2868.4,0.00406253]
[1645194897283,0.03010711,2869.1,2868.4,0.87607253]
[1645194897680,0.46182582,2869.9,2868.4,0.87607253]
[1645194897880,0.8842645,2869.6,2868.4,0.87607253]
[1645194898086,0.8842645,2869.6,2868.8,0.90889843]
[1645194898281,0.8842645,2869.6,2868.9,0.00406253]
[1645194898481,0.8842645,2869.6,2868.4,0.00406253]
[1645194898482,0.28772582,2869.2,2868.4,0.00406253]
[1645194898681,0.8842645,2869.6,2868.9,0.87205]
[1645194898884,1.1842645,2869.6,2869.0,0.00406253]
[1645194899082,1.47199032,2869.6,2869.0,0.00406253]
[1645194899283,1.47199032,2869.6,2868.8,0.00406253]
[1645194899284,0.28772582,2869.2,2868.8,0.00406253]
[1645194899543,0.28772582,2869.2,2868.0,0.1742]
[1645194899544,1.16340219,2868.9,2868.3,0.00406253]
[1645194899747,0.28772582,2868.4,2868.1,0.00406253]
[1645194899948,0.28772582,2868.2,2867.8,0.87652253]
[1645194900147,0.28772582,2867.9,2867.8,0.87652253]
[1645194900350,0.28772582,2867.9,2867.8,0.87246]
[1645194900351,0.70472582,2867.9,2867.8,0.87246]
[1645194900566,0.717,2867.9,2867.8,0.87246]
[1645194901849,2.61747,2869.5,2867.8,0.87246]
[1645194901850,1.40922621,2868.7,2867.8,1.76400706]
[1645194902054,0.01124692,2869.5,2867.8,1.76806959]
[1645194902055,0.00197171,2868.4,2867.8,1.76806959]
[1645194902648,0.00197171,2868.4,2867.8,2.06806959]
[1645194902848,0.00197171,2868.4,2867.9,1.74415]
[1645194902849,0.00212266,2868.4,2867.9,1.74415]
[1645194903046,0.00212266,2868.4,2868.0,0.87217]
[1645194903279,0.00212266,2868.4,2868.1,0.3]
[1645194903677,0.28772582,2869.3,2868.4,0.0039021]
[1645194903876,0.8720696,2869.4,2868.4,0.0039021]
[1645194904277,0.8720696,2869.4,2868.6,0.87204]
[1645194904584,0.8720696,2869.4,2868.7,0.00406253]
[1645194905285,0.01124692,2869.5,2868.9,1.74399]
[1645194905485,0.01124692,2869.5,2868.9,1.74805253]
[1645194905886,0.29897274,2869.5,2868.9,1.74805253]
[1645194906182,0.28772582,2869.4,2868.9,1.73667702]
[1645194906385,0.28772582,2869.4,2868.9,0.00406253]
[1645194906386,0.28772582,2869.0,2868.9,0.00406253]
[1645194906582,0.28772582,2869.0,2868.4,0.0039021]
[1645194906583,0.70472582,2869.0,2868.6,0.87229]
[1645194906783,0.28772582,2868.7,2868.6,0.87229]
[1645194907245,0.28772582,2868.7,2868.6,0.82229]
[1645194907444,0.717,2869.0,2868.6,0.82229]
[1645194907844,0.94596225,2868.8,2868.6,0.82229]
[1645194908048,0.28772582,2868.8,2868.6,0.82229]
[1645194908247,0.28772582,2868.8,2868.4,0.0039021]
[1645194908248,0.417,2868.7,2868.4,0.0039021]
[1645194908450,0.28772582,2868.6,2868.4,0.0039021]
[1645194908646,0.417,2868.5,2868.4,0.0039021]
[1645194909049,0.717,2868.5,2868.4,0.0039021]
[1645194909851,0.417,2868.5,2868.4,0.0039021]
[1645194910881,0.417,2868.5,2868.4,2.1e-06]
[1645194911083,3.917,2868.5,2867.6,3.49111082]
[1645194911280,24.547,2868.5,2867.6,0.00259082]
[1645194911478,1.37472412,2867.7,2867.6,0.00259082]
[1645194911679,1.79172412,2867.7,2867.6,0.00259079]
[1645194911877,2.09172412,2867.7,2867.6,0.00259079]
[1645194913177,2.09172412,2867.7,2867.6,0.00518158]
[1645194913377,2.09172412,2867.7,2867.6,8.158e-05]
[1645194913686,2.09172412,2867.7,2866.4,3.49037]
[1645194913687,21.2027663,2867.5,2866.4,3.49037]
[1645194913884,21.2027663,2867.5,2866.8,4.611e-05]
[1645194913885,0.28772582,2866.9,2866.8,4.611e-05]
[1645194914079,0.28772582,2866.9,2866.0,0.007]
[1645194914080,6.5,2866.8,2866.0,0.007]
[1645194914280,0.28772582,2866.4,2866.0,0.007]
[1645194914527,0.83842521,2866.1,2866.0,0.007]
[1645194914735,1.55542521,2866.1,2866.0,0.007]
[1645194914933,1.55542521,2866.1,2866.0,0.86616]
[1645194915133,1.55542521,2866.1,2866.0,0.83816]
[1645194915734,0.717,2866.1,2866.0,0.83816]
[1645194917838,0.417,2866.1,2866.0,0.83816]
[1645194919381,0.717,2866.1,2866.0,0.83816]
[1645194921284,1.00472582,2866.1,2866.0,0.83816]
[1645194921685,1.00472582,2866.1,2866.0,0.007]
[1645194922330,1.00472582,2866.1,2865.9,5.424e-05]
[1645194922535,1.00472582,2866.1,2864.4,3.49272]
[1645194922730,0.1744,2866.0,2865.9,4.699e-05]
[1645194923030,0.5914,2866.0,2865.9,4.699e-05]
[1645194923632,0.5914,2866.0,2865.0,0.01215248]
[1645194923633,6.5,2865.8,2865.0,0.01215248]
[1645194923833,6.5,2865.8,2863.2,0.0440697]
[1645194923834,5.28772582,2865.1,2863.2,0.0440697]
[1645194924036,5.0,2864.6,2863.7,1.74753]
[1645194924234,5.0,2864.6,2862.8,0.0145742]
[1645194924235,6.8,2863.7,2862.8,0.0145742]
[1645194924432,0.28772582,2862.9,2862.8,0.0145742]
[1645194924636,0.70472582,2862.9,2862.0,0.0431849]
[1645194924938,0.28772582,2862.7,2862.6,0.87414]
[1645194925135,0.417,2862.7,2862.6,0.32414]
[1645194925335,0.58772582,2862.9,2862.8,0.39785798]
[1645194925336,0.3,2862.9,2862.8,0.39785798]
[1645194925535,0.58772582,2862.9,2862.8,0.39785798]
[1645194926382,0.58772582,2862.9,2862.3,2.7e-05]
[1645194926383,0.17701027,2862.8,2862.3,2.7e-05]
[1645194926584,0.17701027,2862.8,2860.6,8.38]
[1645194926585,6.5,2862.3,2861.9,0.0023852]
[1645194926783,0.28772582,2862.0,2861.9,0.0047704]
[1645194926982,0.28772582,2862.0,2861.1,0.97459]
[1645194926983,0.70472582,2862.0,2861.1,0.97459]
[1645194927180,0.70472582,2862.0,2861.3,1.18507771]
[1645194927181,0.417,2862.0,2861.3,1.18507771]
[1645194927382,0.417,2862.0,2861.2,0.04547387]
[1645194927584,0.70472582,2862.0,2861.2,0.04547387]
[1645194927779,0.417,2862.0,2860.8,1.74918]
[1645194927984,0.417,2862.0,2861.1,2.62275]
[1645194928184,0.417,2862.0,2861.4,1.74888]
[1645194928582,0.417,2862.0,2861.4,5.24888]
[1645194928784,0.417,2862.0,2861.4,2.04888]
[1645194928985,0.28772582,2863.0,2861.6,2.62189]
[1645194929187,0.417,2862.9,2861.6,2.62189]
[1645194929387,0.417,2862.9,2861.7,3.5]
[1645194929638,0.417,2862.9,2862.1,1.08841273]
[1645194930037,0.417,2862.9,2862.1,1.38841273]
[1645194930236,0.417,2862.9,2862.1,2.26231273]
[1645194930439,0.417,2862.9,2862.1,1.39112864]
[1645194930637,0.417,2862.9,2862.7,0.99091885]
[1645194931038,0.417,2862.9,2862.2,1.74813]
[1645194931344,0.28772582,2862.8,2862.1,0.00271591]
[1645194931539,0.417,2862.9,2862.4,0.00271581]
[1645194931938,0.417,2862.9,2862.6,1.01934529]
[1645194932340,0.417,2862.9,2862.6,1.89313529]
[1645194933287,0.417,2863.5,2862.6,1.89313529]
[1645194933493,5.215,2864.9,2862.6,1.89313529]
[1645194933494,0.417,2863.8,2862.7,5.01227418]
[1645194933691,0.417,2864.6,2863.3,0.87348]
[1645194933890,0.28772582,2864.8,2863.4,3.5]
[1645194934087,0.28772582,2864.8,2863.6,4.71227418]
[1645194934291,0.28772582,2864.8,2864.3,0.3939]
[1645194934693,0.28772582,2864.7,2864.4,0.8732]
[1645194934892,0.0027133,2865.1,2864.2,1.7464]
[1645194934893,0.28772582,2864.5,2864.2,1.7464]
[1645194935090,0.28772582,2864.8,2864.2,1.7464]
[1645194936091,1.32383362,2864.9,2864.2,1.7464]
[1645194936092,0.28772582,2864.4,2864.2,1.7464]
[1645194936292,0.28772582,2864.4,2864.0,1.74694]
[1645194936491,0.417,2864.3,2864.0,1.74694]
[1645194936693,0.28772582,2864.1,2864.0,0.00924096]
[1645194936896,0.70472582,2864.1,2864.0,0.00924096]
[1645194937142,6.0,2864.0,2862.8,0.03466843]
[1645194937341,0.8738242,2863.8,2863.0,1.74761]
[1645194937541,0.417,2863.7,2863.0,1.74761]
[1645194937742,0.28772582,2863.4,2863.0,1.74761]
[1645194937941,0.28772582,2863.4,2862.8,0.06933439]
[1645194937942,0.417,2863.3,2862.8,0.03466596]
[1645194938742,0.417,2863.3,2861.3,1.74769]
[1645194938743,0.417,2863.3,2861.3,4.36928]
[1645194938943,0.417,2863.3,2862.9,1.74764]
[1645194938944,0.70472582,2863.3,2862.9,1.74764]
[1645194939143,0.28772582,2863.0,2862.8,0.00949594]
[1645194939345,0.417,2862.9,2862.8,0.00949594]
[1645194939547,1.43555955,2862.9,2862.8,0.00949594]
[1645194939748,6.5,2862.8,2862.6,1.27e-05]
[1645194939949,0.70472582,2862.7,2862.6,1.27e-05]
[1645194940146,0.70472582,2862.7,2861.2,1.74864]
[1645194940147,0.87932582,2862.7,2861.2,1.74864]
[1645194940348,0.28772582,2862.4,2860.5,4.71227418]
[1645194940648,0.417,2862.3,2860.5,4.71227418]
[1645194940880,1.31250482,2862.2,2860.9,1.74825]
[1645194941079,1.72950482,2862.2,2861.0,0.87423]
[1645194941679,1.441779,2862.2,2861.0,0.82423]
[1645194941876,1.441779,2862.2,2861.2,1.09311409]
[1645194942085,1.72950482,2862.2,2861.5,2.62227]
[1645194942283,1.441779,2862.2,2861.5,2.62227]
[1645194942486,0.28772582,2861.8,2861.5,2.62628101]
[1645194942681,1.441779,2862.2,2861.5,2.62628101]
[1645194942682,0.417,2861.7,2861.5,2.62628101]
[1645194942987,0.28772582,2861.6,2861.5,0.00270684]
[1645194943282,2.45398582,2861.6,2861.5,6.84e-06]
[1645194943485,3.55371629,2861.6,2861.0,0.010829]
[1645194943683,0.28772582,2861.1,2860.6,0.00401101]
[1645194943884,0.28772582,2861.1,2858.8,1.01110353]
[1645194943885,0.28772582,2860.8,2860.3,0.00401101]
[1645194944086,0.28772582,2860.8,2858.8,1.01110353]
[1645194944087,0.28772582,2860.4,2858.8,1.01110353]
[1645194944282,0.28772582,2860.4,2860.1,0.66301244]
[1645194944283,0.417,2860.3,2860.1,0.66301244]
[1645194944531,0.28772582,2860.2,2860.1,0.66301244]
[1645194944734,0.28772582,2860.2,2859.2,0.87505]
[1645194944735,3.0,2860.1,2859.2,0.87505]
[1645194944935,0.28772582,2859.5,2858.8,1.01110353]
[1645194945137,0.417,2859.4,2859.1,19.71901]
[1645194945333,1.75017,2860.1,2859.9,0.37620238]
[1645194945532,0.1748,2860.4,2859.9,0.37620238]
[1645194945533,0.28772582,2860.4,2859.9,0.37620238]
[1645194945733,1.2920703,2860.0,2859.9,0.37620238]
[1645194945932,0.417,2860.0,2859.9,0.37620238]
[1645194946333,0.70472582,2860.0,2859.9,0.37620238]
[1645194947334,0.70472582,2860.0,2859.9,0.32316199]
[1645194947733,1.291834,2860.0,2859.9,0.32316199]
[1645194947935,1.291834,2860.0,2859.9,0.27316199]
[1645194949489,2.21939761,2860.0,2859.9,0.27316199]
[1645194949695,1.291834,2860.0,2859.9,0.27316199]
[1645194950293,0.417,2860.0,2859.9,0.27316199]
[1645194950492,0.70472582,2860.0,2859.9,0.27316199]
[1645194950692,0.417,2860.0,2859.9,0.27316199]
[1645194951092,0.717,2860.0,2859.9,0.27316199]
[1645194951600,0.417,2860.0,2859.9,0.27316199]
[1645194952054,0.77628,2860.0,2859.9,0.27316199]
[1645194952845,0.35928,2860.0,2859.9,0.27316199]
[1645194953046,0.65928,2860.0,2859.9,0.27316199]
[1645194953644,0.35928,2860.0,2859.9,0.27316199]
[1645194954447,0.65928,2860.0,2859.9,0.27316199]
[1645194954649,0.94700582,2860.0,2859.9,0.27316199]
[1645194954847,0.65928,2860.0,2859.9,0.27316199]
[1645194955153,0.94700582,2860.0,2859.9,0.27316199]
[1645194955347,1.78428576,2860.7,2859.9,0.27316199]
[1645194955348,0.1748,2860.7,2859.9,0.27316199]
[1645194955549,0.95880701,2860.5,2859.9,0.27316199]
[1645194955779,0.417,2860.4,2859.9,0.27316199]
[1645194956683,6.5,2860.3,2859.8,1.589e-05]
[1645194956884,1.00754826,2860.0,2859.8,1.589e-05]
[1645194957082,1.00754826,2860.0,2859.3,0.00659976]
[1645194957083,0.87509,2859.8,2859.3,0.00659976]
[1645194957281,0.417,2859.7,2859.3,0.00659976]
[1645194957480,0.86647142,2859.4,2859.3,0.00659976]
[1645194957883,2.04154142,2859.4,2859.3,0.00659976]
[1645194958082,0.3,2859.4,2859.3,0.00659976]
[1645194958884,0.417,2859.4,2859.3,0.00659976]
[1645194959744,0.417,2859.4,2857.4,0.0440697]
[1645194959745,2.38238899,2858.9,2857.4,0.0440697]
[1645194959952,2.38238899,2858.9,2856.3,2.61793]
[1645194959953,5.0,2857.6,2856.2,8.12994867]
[1645194960252,5.0,2857.6,2855.6,0.44506]
[1645194960253,0.8314,2856.0,2855.6,0.01276704]
[1645194960443,0.417,2855.9,2855.6,0.01276704]
[1645194961244,0.417,2855.9,2855.6,0.00276704]
[1645194961245,5.632,2855.9,2855.6,0.00276704]
[1645194961448,9.03714,2855.9,2854.8,0.3]
[1645194961648,9.03714,2855.9,2855.7,0.00261703]
[1645194961649,0.87625,2855.8,2855.7,0.00261703]
[1645194961846,2.5289,2855.9,2855.7,0.00261703]
[1645194962048,1.75184,2856.5,2855.8,0.175]
[1645194962242,0.417,2856.7,2855.8,0.175]
[1645194962243,0.87585,2856.6,2855.8,0.175]
[1645194962446,0.87585,2856.6,2855.7,0.00261703]
[1645194962447,1.3469,2856.6,2855.7,0.00261703]
[1645194962644,0.417,2856.5,2855.7,0.01560017]
[1645194962851,0.417,2856.5,2855.3,5.09050017]
[1645194963046,0.417,2856.5,2855.4,3.5]
[1645194963298,0.417,2856.5,2855.2,0.05234825]
[1645194963299,1.29287,2856.5,2855.2,0.05234825]
[1645194963496,1.29287,2856.5,2855.2,0.00261719]
[1645194963497,2.62854,2855.9,2855.2,0.00261719]
[1645194963700,0.417,2855.8,2855.2,0.00261719]
[1645194964101,0.417,2855.8,2854.3,0.00259792]
[1645194964305,5.0931777,2855.8,2854.3,0.00259792]
[1645194964502,1.75259,2855.5,2854.3,0.01467628]
[1645194964705,1.75259,2855.5,2853.6,9.6931294]
[1645194964706,6.5,2855.3,2853.6,9.6931294]
[1645194964911,6.5,2855.3,2851.6,0.0440697]
[1645194964912,6.5,2854.3,2851.6,0.0440697]
[1645194965202,6.5,2854.3,2851.0,0.02496034]
[1645194965203,0.52332,2851.4,2851.0,0.02496034]
[1645194965411,1.16771453,2850.6,2850.1,1.99401522]
[1645194965609,1.16771453,2850.6,2850.2,0.01246255]
[1645194965610,1.45561453,2850.6,2850.2,0.01246255]
[1645194965823,1.45561453,2850.6,2849.4,0.007]
[1645194965824,5.215,2850.3,2849.3,2.03001673]
[1645194966005,3.74983398,2850.5,2850.4,1.09370848]
[1645194966211,3.74983398,2850.5,2849.7,0.01245311]
[1645194966212,10.51,2850.3,2849.7,0.01245311]
[1645194966404,10.51,2850.3,2848.5,0.00315056]
[1645194966405,1.13682747,2849.3,2848.9,0.07150028]
[1645194966609,1.13682747,2849.3,2846.3,1.77568135]
[1645194966610,6.5,2849.2,2846.3,1.77568135]
[1645194966807,6.5,2849.2,2846.4,2.15969025]
[1645194966808,5.215,2849.0,2846.4,2.15969025]
[1645194967049,5.215,2849.0,2845.3,1.63037584]
[1645194967050,12.32200247,2845.5,2845.3,1.63037584]
[1645194967249,12.32200247,2845.5,2843.8,0.1755]
[1645194967250,18.93446992,2845.4,2842.5,0.4351]
[1645194967447,5.55025381,2845.3,2845.0,0.00393057]
[1645194967652,7.0164,2845.4,2842.8,0.04029616]
[1645194967653,2.1336015,2844.5,2844.3,1.29871978]
[1645194967851,0.1981,2844.6,2844.4,0.39948999]
[1645194968053,2.3691653,2844.4,2843.3,4.32878469]
[1645194968249,1.0,2844.4,2844.3,0.85512646]
[1645194968448,1.0,2844.4,2843.6,1.71022293]
[1645194968449,6.5326045,2844.2,2843.6,1.71022293]
[1645194968650,0.2917,2843.9,2843.5,1.5023729]
[1645194968851,0.2917,2843.9,2841.2,0.90357]
[1645194968852,5.0,2843.5,2841.2,0.90357]
[1645194969058,3.09594722,2843.3,2843.0,0.38463852]
[1645194969253,3.09594722,2843.3,2841.3,1.49474869]
[1645194969254,10.54,2842.6,2842.3,0.5595044]
[1645194969454,10.54,2842.6,2840.4,4.50365641]
[1645194969455,35.391,2842.4,2841.0,0.73613956]
[1645194969654,5.0,2841.9,2837.2,6.60108722]
[1645194969952,5.0,2841.9,2836.6,2.11441314]
[1645194969953,5.0,2841.9,2840.7,2.14124228]
[1645194969954,0.297,2841.0,2840.7,2.14124228]
[1645194970153,6.8811,2840.9,2840.8,1.12636023]
[1645194970352,0.3,2841.9,2840.9,2.6341]
[1645194970560,0.88077,2842.0,2841.0,1.49579271]
[1645194970800,2.64231,2842.4,2840.1,4.02702913]
[1645194970801,1.0,2841.0,2840.1,4.02702913]
[1645194971001,0.13819997,2842.5,2839.2,1.0]
[1645194971002,4.95,2843.4,2840.7,3.2558708]
[1645194971205,0.3,2840.9,2840.7,1.10756376]
[1645194971404,0.08611616,2841.7,2839.7,0.00314278]
[1645194971607,0.23102647,2842.5,2839.8,6.5]
[1645194971805,0.4759,2843.6,2839.8,6.5]
[1645194971806,7.17092489,2842.1,2841.2,0.05]
[1645194972003,3.11825,2843.6,2841.2,0.05]
[1645194972004,0.267351,2842.0,2841.3,6.5]
[1645194972202,0.1892,2844.7,2841.3,6.5]
[1645194972203,0.21029301,2843.6,2841.3,6.5]
[1645194972407,4.95,2842.5,2839.8,11.715]
[1645194972709,0.1759,2843.5,2839.0,1.0]
[1645194972710,0.20073067,2843.5,2840.4,6.5]
[1645194972901,0.20073067,2843.5,2841.0,5.215]
[1645194973108,0.01307922,2845.2,2841.1,0.417]
[1645194973109,4.79926933,2843.4,2841.1,0.417]
[1645194973302,2.63285194,2843.4,2841.1,0.417]
[1645194973603,2.63285194,2843.4,2842.3,5.0]
[1645194973802,2.63285194,2843.4,2841.0,10.0]
[1645194973803,3.39256093,2842.2,2841.8,5.0]
[1645194974000,2.63285194,2843.4,2841.8,5.0]
[1645194974001,2.63285194,2843.4,2842.0,6.5]
[1645194974401,2.63285194,2843.4,2842.1,0.417]
[1645194974647,2.63285194,2843.4,2841.2,5.0]
[1645194974648,0.23666574,2843.3,2842.2,0.417]
[1645194974847,0.23666574,2843.3,2841.2,5.0]
[1645194974848,0.23666574,2843.3,2843.0,0.61534855]
[1645194975049,0.23666574,2843.3,2842.3,0.00389823]
[1645194975248,0.23666574,2843.3,2841.8,0.00389823]
[1645194975447,2.92285194,2843.4,2839.7,0.50314278]
[1645194975448,2.92285194,2843.4,2841.4,0.00389823]
[1645194975649,0.4727256,2843.2,2841.5,0.40530531]
[1645194975843,0.4727256,2843.2,2841.6,0.42089823]
[1645194975844,0.25880273,2843.0,2841.6,0.42089823]
[1645194976045,0.78063933,2843.2,2841.8,0.64241633]
[1645194976345,0.78063933,2843.2,2841.9,0.417]
[1645194976346,0.2888,2842.9,2841.9,0.417]
[1645194976545,0.43684074,2842.8,2841.9,0.42089823]
[1645194976748,0.26094074,2842.8,2841.9,0.42089823]
[1645194977148,0.30123932,2842.9,2841.4,5.0]
[1645194977348,0.30123932,2842.9,2841.5,0.417]
[1645194977349,0.25803437,2842.8,2841.5,0.417]
[1645194977551,0.30123932,2842.9,2840.0,9.08091823]
[1645194977552,0.01243932,2842.9,2841.6,0.417]
[1645194977752,0.01243932,2842.9,2841.0,0.35103]
[1645194977753,0.0129973,2843.2,2842.5,6.5]
[1645194978050,0.0129973,2843.2,2842.6,0.417]
[1645194978291,0.0129973,2843.2,2842.5,2.0358]
[1645194978488,0.0129973,2843.2,2843.0,0.51871136]
[1645194978691,9.73e-05,2843.2,2843.1,0.417]
[1645194978887,6.5,2843.3,2842.8,5.215]
[1645194979086,2.11225548,2843.4,2842.4,0.26311062]
[1645194979691,2.82185492,2843.4,2842.4,0.26311062]
[1645194979991,0.1758,2843.3,2842.4,0.26311062]
[1645194980194,2.11225548,2843.4,2842.4,0.26311062]
[1645194980900,2.11225548,2843.4,2840.6,3.11836248]
[1645194980901,3.9933762,2841.6,2841.2,0.68293064]
[1645194981094,4.91245797,2841.6,2841.2,0.68293064]
[1645194981294,0.01265911,2842.3,2841.2,0.68293064]
[1645194981496,5.911e-05,2842.3,2841.7,5.215]
[1645194981693,2.11225548,2843.4,2842.0,5.215]
[1645194981893,0.91908177,2844.1,2842.8,5.215]
[1645194982144,0.01285782,2844.2,2844.0,0.6784718]
[1645194982346,0.01285782,2844.2,2844.1,0.417]
[1645194982644,3.23658039,2844.2,2844.1,0.5926]
[1645194982847,1.21525712,2844.3,2844.1,0.417]
[1645194983048,10.58611565,2845.6,2844.1,0.417]
[1645194983049,0.0120543,2845.1,2844.2,5.215]
[1645194983246,0.5,2845.0,2844.7,5.215]
[1645194983453,0.0120543,2845.1,2844.9,5.215]
[1645194983454,5.43e-05,2845.1,2844.9,5.215]
[1645194983652,9.66703388,2845.6,2845.0,5.8076]
[1645194983653,9.4780667,2845.6,2845.0,5.8076]
[1645194983848,29.00817857,2846.3,2845.5,5.215]
[1645194984048,3.5,2846.2,2845.6,0.1756]
[1645194984253,0.93193087,2847.0,2846.1,5.215]
[1645194984449,0.93193087,2847.0,2846.9,5.215]
[1645194984649,0.16497032,2846.5,2845.6,0.52663]
[1645194984853,7.032e-05,2846.5,2845.6,0.94750534]
[1645194985048,7.032e-05,2846.5,2845.7,0.00387534]
[1645194985049,0.75418177,2846.0,2845.7,0.00387534]
[1645194985249,0.25418177,2846.0,2845.8,0.417]
[1645194985451,5.0,2846.2,2845.9,0.417]
[1645194985452,5.01255649,2846.2,2845.9,0.417]
[1645194985651,5.01255649,2846.2,2843.8,8.88167556]
[1645194985652,1.89888601,2844.2,2843.8,8.88167556]
[1645194985903,0.01255649,2846.2,2844.1,0.5]
[1645194986114,1.11832444,2846.0,2844.5,0.5]
[1645194986306,0.01213144,2845.6,2844.6,0.417]
[1645194986506,0.01213144,2845.6,2844.7,0.1756]
[1645194986708,1.11832444,2845.6,2844.8,0.417]
[1645194986912,1.11832444,2844.9,2844.0,0.1756]
[1645194987111,1.11832444,2844.6,2844.1,0.42087547]
[1645194987307,5.4781,2846.2,2844.2,0.417]
[1645194987308,0.01296519,2844.5,2844.2,0.417]
[1645194987510,5.0,2844.5,2844.3,0.00387547]
[1645194987712,5.41832444,2844.4,2842.9,0.00387547]
[1645194987910,0.01245468,2845.4,2843.0,0.417]
[1645194988111,7.032e-05,2846.5,2843.0,0.417]
[1645194988112,1.06442178,2845.9,2844.6,5.215]
[1645194988313,7.032e-05,2846.5,2845.0,5.215]
[1645194988511,3.81371756,2844.9,2844.6,1.0819]
[1645194988718,7.032e-05,2846.5,2844.8,5.215]
[1645194988719,0.41832444,2845.9,2844.8,5.215]
[1645194988910,0.41832444,2845.6,2844.9,0.0038752]
[1645194989109,0.41832444,2845.6,2845.0,0.417]
[1645194989312,0.41832444,2845.1,2845.0,0.417]